[Event "Late-Titled-Tuesday-Blitz-April-16-2024"]
[Site "Chess.com"]
[Date "2024.04.16"]
[Round "8"]
[White "Ykow"]
[Black "Karttunen"]
[Result "1-0"]
[WhiteElo "2564"]
[BlackElo "2679"]
[TimeControl "180+1"]
[EndTime "15:23:48 PDT"]
[Termination "Ykow won on time"]

1. e4 {[%clk 0:03:00.9]} 1... c5 {[%clk 0:02:58.2]} 2. Nf3 {[%clk 0:02:46.7]}
2... d6 {[%clk 0:02:58]} 3. Nc3 {[%clk 0:02:46.1]} 3... a6 {[%clk 0:02:55.2]} 4.
d4 {[%clk 0:02:45.9]} 4... cxd4 {[%clk 0:02:55.1]} 5. Nxd4 {[%clk 0:02:46.8]}
5... Nf6 {[%clk 0:02:54.4]} 6. f3 {[%clk 0:02:47.2]} 6... e5 {[%clk 0:02:54.1]}
7. Nb3 {[%clk 0:02:47.5]} 7... Be6 {[%clk 0:02:54.2]} 8. Be3 {[%clk 0:02:48.1]}
8... Nbd7 {[%clk 0:02:53.4]} 9. g4 {[%clk 0:02:41.5]} 9... b5 {[%clk 0:02:50.8]}
10. g5 {[%clk 0:02:41.3]} 10... Nh5 {[%clk 0:02:47.7]} 11. Qd2 {[%clk
0:02:41.2]} 11... Nb6 {[%clk 0:02:31.3]} 12. O-O-O {[%clk 0:02:38]} 12... Rc8
{[%clk 0:02:23.3]} 13. Kb1 {[%clk 0:02:17.6]} 13... Nc4 {[%clk 0:02:17]} 14.
Bxc4 {[%clk 0:02:15.9]} 14... bxc4 {[%clk 0:02:15.7]} 15. Nc1 {[%clk 0:02:13.7]}
15... Be7 {[%clk 0:01:59.2]} 16. N1e2 {[%clk 0:02:13.1]} 16... O-O {[%clk
0:01:58.6]} 17. h4 {[%clk 0:02:13.3]} 17... f5 {[%clk 0:01:48.8]} 18. gxf6
{[%clk 0:02:08.9]} 18... Rxf6 {[%clk 0:01:46.2]} 19. f4 {[%clk 0:02:08.9]} 19...
Bg4 {[%clk 0:01:24.5]} 20. f5 {[%clk 0:01:53.1]} 20... Rf7 {[%clk 0:01:17.7]}
21. Rhg1 {[%clk 0:01:50.2]} 21... Bxe2 {[%clk 0:01:14.5]} 22. Qxe2 {[%clk
0:01:49.1]} 22... Nf6 {[%clk 0:01:06.7]} 23. h5 {[%clk 0:01:43.4]} 23... d5
{[%clk 0:00:47.2]} 24. Nxd5 {[%clk 0:01:39.7]} 24... Nxd5 {[%clk 0:00:45.7]} 25.
Rxd5 {[%clk 0:01:38.9]} 25... Qc7 {[%clk 0:00:45.9]} 26. h6 {[%clk 0:01:37.5]}
26... c3 {[%clk 0:00:39.2]} 27. b3 {[%clk 0:01:35.8]} 27... Bf8 {[%clk
0:00:37.5]} 28. Qh2 {[%clk 0:01:33.1]} 28... Re8 {[%clk 0:00:31]} 29. Rdd1
{[%clk 0:01:26.9]} 29... a5 {[%clk 0:00:31.3]} 30. hxg7 {[%clk 0:01:23.2]} 30...
Rxg7 {[%clk 0:00:29.2]} 31. f6 {[%clk 0:01:19.2]} 31... Rg6 {[%clk 0:00:24.5]}
32. Rxg6+ {[%clk 0:01:15.2]} 32... hxg6 {[%clk 0:00:24.6]} 33. Rh1 {[%clk
0:01:16]} 33... Bg7 {[%clk 0:00:04.4]} 34. Qh7+ {[%clk 0:01:12.8]} 1-0

[Event "Late-Titled-Tuesday-Blitz-April-16-2024"]
[Site "Chess.com"]
[Date "2024.04.16"]
[Round "8"]
[White "Gabrielian_Artur"]
[Black "Brown_Mamba24"]
[Result "1-0"]
[WhiteElo "2797"]
[BlackElo "2646"]
[TimeControl "180+1"]
[EndTime "15:23:51 PDT"]
[Termination "Gabrielian_Artur won by resignation"]

1. e4 {[%clk 0:03:00.9]} 1... c5 {[%clk 0:03:00.1]} 2. Nf3 {[%clk 0:03:00.7]}
2... Nc6 {[%clk 0:02:58.8]} 3. Bb5 {[%clk 0:03:00.4]} 3... Nf6 {[%clk
0:02:58.9]} 4. Nc3 {[%clk 0:02:59.9]} 4... Qc7 {[%clk 0:02:57.9]} 5. O-O {[%clk
0:02:59.7]} 5... Nd4 {[%clk 0:02:57.9]} 6. Re1 {[%clk 0:02:56.5]} 6... a6 {[%clk
0:02:56]} 7. Bf1 {[%clk 0:02:54.4]} 7... d6 {[%clk 0:02:56.5]} 8. Nxd4 {[%clk
0:02:41]} 8... cxd4 {[%clk 0:02:57.4]} 9. Nd5 {[%clk 0:02:38.9]} 9... Qc5 {[%clk
0:02:55.1]} 10. b4 {[%clk 0:02:32.8]} 10... Qc6 {[%clk 0:02:55.5]} 11. b5 {[%clk
0:02:28.1]} 11... Qc5 {[%clk 0:02:56]} 12. bxa6 {[%clk 0:02:20.6]} 12... Nxd5
{[%clk 0:02:55.3]} 13. exd5 {[%clk 0:02:10.3]} 13... Qxd5 {[%clk 0:02:55.7]} 14.
c4 {[%clk 0:02:04.1]} 14... dxc3 {[%clk 0:02:51.6]} 15. Qc2 {[%clk 0:01:39.6]}
15... bxa6 {[%clk 0:02:39.3]} 16. Qxc3 {[%clk 0:01:37]} 16... Bb7 {[%clk
0:02:30.5]} 17. Rb1 {[%clk 0:01:36]} 17... Rc8 {[%clk 0:02:27.8]} 18. Qa3 {[%clk
0:01:33.5]} 18... e6 {[%clk 0:02:22.5]} 19. Bb2 {[%clk 0:01:31]} 19... Be7
{[%clk 0:02:20.6]} 20. Qa4+ {[%clk 0:01:27.4]} 20... Bc6 {[%clk 0:02:18.8]} 21.
Qg4 {[%clk 0:01:23.7]} 21... Bf6 {[%clk 0:02:18.3]} 22. Bxf6 {[%clk 0:01:21.2]}
22... gxf6 {[%clk 0:02:19.2]} 23. Bxa6 {[%clk 0:01:16.5]} 23... h5 {[%clk
0:00:38.9]} 24. Qg7 {[%clk 0:01:16]} 24... Rh6 {[%clk 0:00:39.3]} 25. Bxc8
{[%clk 0:01:04.1]} 25... Rg6 {[%clk 0:00:39]} 26. Rxe6+ {[%clk 0:01:02.4]} 26...
Qxe6 {[%clk 0:00:27.5]} 27. Qh8+ {[%clk 0:00:53.1]} 27... Ke7 {[%clk 0:00:27.3]}
28. Bxe6 {[%clk 0:00:53.3]} 28... Bxg2 {[%clk 0:00:22.3]} 29. Bf5 {[%clk
0:00:49.1]} 29... Rg5 {[%clk 0:00:20.4]} 30. h4 {[%clk 0:00:47.2]} 1-0

[Event "Late-Titled-Tuesday-Blitz-April-16-2024"]
[Site "Chess.com"]
[Date "2024.04.16"]
[Round "8"]
[White "CarlosjPineror"]
[Black "Kostukov_Alex"]
[Result "1-0"]
[WhiteElo "2699"]
[BlackElo "2340"]
[TimeControl "180+1"]
[EndTime "15:23:57 PDT"]
[Termination "CarlosjPineror won by resignation"]

1. e4 {[%clk 0:03:00.9]} 1... c5 {[%clk 0:02:59.4]} 2. Nf3 {[%clk 0:02:54.9]}
2... g6 {[%clk 0:02:59.6]} 3. d4 {[%clk 0:02:55]} 3... cxd4 {[%clk 0:02:59.8]}
4. Nxd4 {[%clk 0:02:55.9]} 4... Bg7 {[%clk 0:02:59.6]} 5. Be3 {[%clk 0:02:56.5]}
5... Nf6 {[%clk 0:02:57.5]} 6. Nc3 {[%clk 0:02:56.9]} 6... Nc6 {[%clk
0:02:57.2]} 7. Bc4 {[%clk 0:02:57.1]} 7... Qa5 {[%clk 0:02:56.7]} 8. O-O {[%clk
0:02:54.7]} 8... Qb4 {[%clk 0:02:56.8]} 9. Bb3 {[%clk 0:02:54.8]} 9... Nxe4
{[%clk 0:02:57]} 10. Nxc6 {[%clk 0:02:27.6]} 10... bxc6 {[%clk 0:02:54.7]} 11.
a3 {[%clk 0:02:23.6]} 11... Nxc3 {[%clk 0:02:54.1]} 12. Qf3 {[%clk 0:02:11.6]}
12... Qxb3 {[%clk 0:02:52.6]} 13. cxb3 {[%clk 0:02:08.2]} 13... Nd5 {[%clk
0:02:53.5]} 14. Rad1 {[%clk 0:02:03]} 14... O-O {[%clk 0:02:26.2]} 15. Bd4
{[%clk 0:02:02.4]} 15... f6 {[%clk 0:02:15.6]} 16. b4 {[%clk 0:01:59.2]} 16...
e6 {[%clk 0:02:06.1]} 17. Rc1 {[%clk 0:01:56.2]} 17... a5 {[%clk 0:02:02.2]} 18.
bxa5 {[%clk 0:01:51.5]} 18... Rxa5 {[%clk 0:01:59.5]} 19. Rfe1 {[%clk
0:01:51.5]} 19... e5 {[%clk 0:01:48.3]} 20. Bc5 {[%clk 0:01:48.5]} 20... Re8
{[%clk 0:01:46.8]} 21. b4 {[%clk 0:01:45.2]} 21... Ra8 {[%clk 0:01:43.1]} 22. h3
{[%clk 0:01:40.1]} 22... Kh8 {[%clk 0:01:37.4]} 23. Qb3 {[%clk 0:01:37.8]} 23...
Ba6 {[%clk 0:01:23.2]} 24. a4 {[%clk 0:01:34.4]} 24... Nf4 {[%clk 0:01:20.3]}
25. b5 {[%clk 0:01:31.4]} 25... cxb5 {[%clk 0:01:19.5]} 26. axb5 {[%clk
0:01:32.3]} 26... Bb7 {[%clk 0:01:20]} 27. Be3 {[%clk 0:01:28.2]} 27... Nxg2
{[%clk 0:01:17.5]} 28. Red1 {[%clk 0:01:26.8]} 28... Bf3 {[%clk 0:01:09.8]} 29.
Rxd7 {[%clk 0:01:21.2]} 29... Rg8 {[%clk 0:00:44.4]} 30. b6 {[%clk 0:01:16.6]}
30... Nxe3 {[%clk 0:00:35.3]} 31. Qxe3 {[%clk 0:01:13.2]} 31... e4 {[%clk
0:00:30.7]} 32. b7 {[%clk 0:01:11.5]} 32... Rab8 {[%clk 0:00:30]} 33. Rcc7
{[%clk 0:01:10.6]} 33... Rbe8 {[%clk 0:00:22.4]} 34. Qc5 {[%clk 0:01:03.6]}
34... h5 {[%clk 0:00:16.3]} 35. Rc8 {[%clk 0:00:56.9]} 1-0

[Event "Late-Titled-Tuesday-Blitz-April-16-2024"]
[Site "Chess.com"]
[Date "2024.04.16"]
[Round "8"]
[White "HajiyevKanan"]
[Black "ArchibaldCerveza29"]
[Result "0-1"]
[WhiteElo "2592"]
[BlackElo "2391"]
[TimeControl "180+1"]
[EndTime "15:24:00 PDT"]
[Termination "ArchibaldCerveza29 won by resignation"]

1. d4 {[%clk 0:02:57.5]} 1... d5 {[%clk 0:02:59.4]} 2. Nf3 {[%clk 0:02:58.4]}
2... Nf6 {[%clk 0:02:59.1]} 3. c4 {[%clk 0:02:57.8]} 3... e6 {[%clk 0:02:59.2]}
4. cxd5 {[%clk 0:02:58.7]} 4... exd5 {[%clk 0:03:00.1]} 5. Nc3 {[%clk
0:02:58.3]} 5... c6 {[%clk 0:03:00.4]} 6. Bg5 {[%clk 0:02:58.3]} 6... h6 {[%clk
0:03:01.2]} 7. Bh4 {[%clk 0:02:57.3]} 7... Bd6 {[%clk 0:03:00.8]} 8. Qc2 {[%clk
0:02:57.3]} 8... O-O {[%clk 0:03:01.4]} 9. e3 {[%clk 0:02:57.5]} 9... Re8 {[%clk
0:03:02]} 10. Bd3 {[%clk 0:02:57.7]} 10... a5 {[%clk 0:03:00.9]} 11. O-O {[%clk
0:02:57.8]} 11... Bg4 {[%clk 0:02:59]} 12. Nd2 {[%clk 0:02:55]} 12... Nbd7
{[%clk 0:02:57]} 13. f3 {[%clk 0:02:42.3]} 13... Bh5 {[%clk 0:02:51]} 14. Rae1
{[%clk 0:02:42.5]} 14... Nf8 {[%clk 0:02:49.2]} 15. e4 {[%clk 0:02:35.7]} 15...
dxe4 {[%clk 0:02:48.8]} 16. fxe4 {[%clk 0:02:36.6]} 16... Be7 {[%clk 0:02:48.3]}
17. Bf2 {[%clk 0:02:07.1]} 17... Ng4 {[%clk 0:02:47.3]} 18. Nf3 {[%clk
0:02:01.4]} 18... Nxf2 {[%clk 0:02:39.6]} 19. Qxf2 {[%clk 0:02:02.3]} 19... Bxf3
{[%clk 0:02:37.1]} 20. gxf3 {[%clk 0:02:02.7]} 20... Bh4 {[%clk 0:02:36.9]} 21.
Qe3 {[%clk 0:01:59.4]} 21... Bxe1 {[%clk 0:02:35.9]} 22. Rxe1 {[%clk 0:02:00]}
22... Qg5+ {[%clk 0:02:32.2]} 23. Qxg5 {[%clk 0:01:52.2]} 23... hxg5 {[%clk
0:02:33.1]} 24. d5 {[%clk 0:01:48.5]} 24... Ng6 {[%clk 0:02:26.9]} 25. Kf2
{[%clk 0:01:42.1]} 25... Ne5 {[%clk 0:02:16.4]} 26. Be2 {[%clk 0:01:34]} 26...
Kf8 {[%clk 0:02:15.3]} 27. Rg1 {[%clk 0:01:33.4]} 27... f6 {[%clk 0:02:14.1]}
28. Rh1 {[%clk 0:01:24.9]} 28... Ng6 {[%clk 0:02:12.2]} 29. a4 {[%clk
0:01:13.7]} 29... Nf4 {[%clk 0:02:11]} 30. Bc4 {[%clk 0:01:13]} 30... Rac8
{[%clk 0:02:03.4]} 31. h4 {[%clk 0:01:07.5]} 31... cxd5 {[%clk 0:02:00]} 32.
Bxd5 {[%clk 0:01:05]} 32... Nxd5 {[%clk 0:01:59.5]} 33. Nxd5 {[%clk 0:00:55.5]}
33... Rc2+ {[%clk 0:01:56.1]} 34. Kg3 {[%clk 0:00:55.9]} 34... gxh4+ {[%clk
0:01:54.9]} 35. Rxh4 {[%clk 0:00:56.8]} 35... Kg8 {[%clk 0:01:52.8]} 36. Rg4
{[%clk 0:00:56.6]} 36... Kf7 {[%clk 0:01:50.1]} 37. b4 {[%clk 0:00:52.9]} 37...
axb4 {[%clk 0:01:48.6]} 38. Nxb4 {[%clk 0:00:53.8]} 38... Rc4 {[%clk 0:01:48.4]}
39. Nd5 {[%clk 0:00:42.7]} 39... Rxa4 {[%clk 0:01:47.4]} 40. Ne3 {[%clk
0:00:43.3]} 40... g6 {[%clk 0:01:44.8]} 41. Rh4 {[%clk 0:00:43.1]} 41... Kg7
{[%clk 0:01:44]} 42. Ng4 {[%clk 0:00:43.1]} 42... b5 {[%clk 0:01:29.4]} 43. Rh2
{[%clk 0:00:34.4]} 43... f5 {[%clk 0:01:28.4]} 44. exf5 {[%clk 0:00:30.9]} 44...
gxf5 {[%clk 0:01:29.3]} 45. Nf2 {[%clk 0:00:23.8]} 45... Re2 {[%clk 0:01:24.4]}
46. Rh1 {[%clk 0:00:19.6]} 46... f4+ {[%clk 0:01:20.2]} 47. Kg2 {[%clk
0:00:18.7]} 47... Raa2 {[%clk 0:01:19.7]} 48. Rf1 {[%clk 0:00:19]} 48... b4
{[%clk 0:01:18.9]} 49. Kg1 {[%clk 0:00:18.3]} 49... Rxf2 {[%clk 0:01:18.5]} 0-1

[Event "Late-Titled-Tuesday-Blitz-April-16-2024"]
[Site "Chess.com"]
[Date "2024.04.16"]
[Round "8"]
[White "PNEPaul"]
[Black "cristiano78"]
[Result "0-1"]
[WhiteElo "1865"]
[BlackElo "2270"]
[TimeControl "180+1"]
[EndTime "15:24:04 PDT"]
[Termination "cristiano78 won on time"]

1. e4 {[%clk 0:02:52.8]} 1... c5 {[%clk 0:02:59.4]} 2. d4 {[%clk 0:02:52.3]}
2... cxd4 {[%clk 0:02:58.7]} 3. c3 {[%clk 0:02:50.5]} 3... dxc3 {[%clk
0:02:58.5]} 4. Nxc3 {[%clk 0:02:50.5]} 4... Nc6 {[%clk 0:02:58.6]} 5. Nf3 {[%clk
0:02:50.2]} 5... e6 {[%clk 0:02:58.5]} 6. Bf4 {[%clk 0:02:49]} 6... a6 {[%clk
0:02:58.2]} 7. Bd3 {[%clk 0:02:48.4]} 7... b5 {[%clk 0:02:57.4]} 8. a3 {[%clk
0:02:47.7]} 8... Nge7 {[%clk 0:02:55.9]} 9. Qe2 {[%clk 0:02:46.9]} 9... Ng6
{[%clk 0:02:56]} 10. Bg3 {[%clk 0:02:46.5]} 10... Be7 {[%clk 0:02:55.7]} 11. Rd1
{[%clk 0:02:45.6]} 11... O-O {[%clk 0:02:54.4]} 12. e5 {[%clk 0:02:45.7]} 12...
f5 {[%clk 0:02:50.3]} 13. exf6 {[%clk 0:02:43.4]} 13... Bxf6 {[%clk 0:02:50.3]}
14. h4 {[%clk 0:02:35.9]} 14... Qa5 {[%clk 0:02:31.2]} 15. h5 {[%clk 0:02:32]}
15... Bxc3+ {[%clk 0:02:30.2]} 16. bxc3 {[%clk 0:02:31]} 16... Qxc3+ {[%clk
0:02:29.9]} 17. Kf1 {[%clk 0:02:30.9]} 17... Nf4 {[%clk 0:02:25.1]} 18. Bxf4
{[%clk 0:02:19.4]} 18... Rxf4 {[%clk 0:02:24.3]} 19. Rh3 {[%clk 0:01:40.2]}
19... Qf6 {[%clk 0:02:14.9]} 20. Kg1 {[%clk 0:01:28.1]} 20... Bb7 {[%clk
0:02:12.4]} 21. Rg3 {[%clk 0:01:21]} 21... Rf8 {[%clk 0:02:10.6]} 22. Rd2 {[%clk
0:00:57.2]} 22... Kh8 {[%clk 0:02:06.3]} 23. Ng5 {[%clk 0:00:38.2]} 23... Qa1+
{[%clk 0:01:51.9]} 24. Kh2 {[%clk 0:00:36.5]} 24... Rh4+ {[%clk 0:01:44.2]} 25.
Nh3 {[%clk 0:00:33.4]} 25... Ne5 {[%clk 0:01:38.2]} 26. Rd1 {[%clk 0:00:22.8]}
26... Qxa3 {[%clk 0:01:24.2]} 27. Bb1 {[%clk 0:00:18.7]} 27... Qc5 {[%clk
0:01:20.8]} 28. Qb2 {[%clk 0:00:13.2]} 28... Rxf2 {[%clk 0:01:12.6]} 29. Rc1
{[%clk 0:00:07.2]} 29... Qe3 {[%clk 0:00:58]} 30. Qc3 {[%clk 0:00:04]} 30...
Qxc3 {[%clk 0:00:57.6]} 31. Rcxc3 {[%clk 0:00:03.4]} 31... Ng4+ {[%clk
0:00:57.6]} 32. Kg1 {[%clk 0:00:02.2]} 32... Rd2 {[%clk 0:00:54.6]} 0-1

[Event "Late-Titled-Tuesday-Blitz-April-16-2024"]
[Site "Chess.com"]
[Date "2024.04.16"]
[Round "8"]
[White "grzechu96"]
[Black "Polish_fighter3000"]
[Result "1-0"]
[WhiteElo "2784"]
[BlackElo "3092"]
[TimeControl "180+1"]
[EndTime "15:24:06 PDT"]
[Termination "grzechu96 won on time"]

1. e4 {[%clk 0:03:00.9]} 1... c5 {[%clk 0:02:57.7]} 2. Nf3 {[%clk 0:03:01.1]}
2... a6 {[%clk 0:02:56.1]} 3. g3 {[%clk 0:02:55.2]} 3... d6 {[%clk 0:02:51.2]}
4. Bg2 {[%clk 0:02:53.8]} 4... Nf6 {[%clk 0:02:50.8]} 5. d4 {[%clk 0:02:51.5]}
5... Nxe4 {[%clk 0:02:38]} 6. O-O {[%clk 0:02:51.7]} 6... e6 {[%clk 0:02:36.7]}
7. Re1 {[%clk 0:02:49.1]} 7... Nf6 {[%clk 0:02:36.6]} 8. dxc5 {[%clk 0:02:25.2]}
8... dxc5 {[%clk 0:02:37.5]} 9. Qxd8+ {[%clk 0:02:25.1]} 9... Kxd8 {[%clk
0:02:37.2]} 10. Ne5 {[%clk 0:02:25.7]} 10... Ke8 {[%clk 0:02:36.9]} 11. a4
{[%clk 0:02:25.7]} 11... Nfd7 {[%clk 0:02:06.6]} 12. Nc4 {[%clk 0:02:23.2]}
12... Nc6 {[%clk 0:02:06.8]} 13. Bf4 {[%clk 0:02:06.9]} 13... Be7 {[%clk
0:01:54.7]} 14. Nbd2 {[%clk 0:02:04.3]} 14... g5 {[%clk 0:01:20.2]} 15. Bc7
{[%clk 0:02:04.2]} 15... Nd4 {[%clk 0:01:07]} 16. Rac1 {[%clk 0:02:03.3]} 16...
Ra7 {[%clk 0:00:52.7]} 17. c3 {[%clk 0:01:03.8]} 17... b5 {[%clk 0:00:31.2]} 18.
Bb6 {[%clk 0:01:03.8]} 18... Nxb6 {[%clk 0:00:04.9]} 19. Nxb6 {[%clk 0:01:04.7]}
19... Bb7 {[%clk 0:00:05.3]} 20. cxd4 {[%clk 0:01:01.3]} 20... c4 {[%clk
0:00:03]} 21. Ne4 {[%clk 0:00:29.8]} 21... Kf8 {[%clk 0:00:01.2]} 22. Nc5 {[%clk
0:00:27.1]} 1-0

[Event "Late-Titled-Tuesday-Blitz-April-16-2024"]
[Site "Chess.com"]
[Date "2024.04.16"]
[Round "8"]
[White "Rawnsdale"]
[Black "Respectful_Dave"]
[Result "1-0"]
[WhiteElo "2496"]
[BlackElo "2359"]
[TimeControl "180+1"]
[EndTime "15:24:09 PDT"]
[Termination "Rawnsdale won by checkmate"]

1. e4 {[%clk 0:03:00.9]} 1... c5 {[%clk 0:02:58.9]} 2. Nf3 {[%clk 0:02:57.7]}
2... d6 {[%clk 0:02:58]} 3. d4 {[%clk 0:02:57.8]} 3... cxd4 {[%clk 0:02:57.9]}
4. Nxd4 {[%clk 0:02:58.7]} 4... Nf6 {[%clk 0:02:58.1]} 5. Nc3 {[%clk 0:02:57.3]}
5... a6 {[%clk 0:02:58.2]} 6. Rg1 {[%clk 0:02:57.9]} 6... h5 {[%clk 0:02:41.5]}
7. Bg5 {[%clk 0:02:55.5]} 7... e5 {[%clk 0:02:08.7]} 8. Nb3 {[%clk 0:02:51]}
8... Be7 {[%clk 0:02:03.2]} 9. Qd2 {[%clk 0:02:48.4]} 9... Be6 {[%clk
0:01:56.8]} 10. O-O-O {[%clk 0:02:47.6]} 10... Nbd7 {[%clk 0:01:52.2]} 11. Kb1
{[%clk 0:02:46]} 11... b5 {[%clk 0:01:46.4]} 12. Bd3 {[%clk 0:02:29.3]} 12...
Rc8 {[%clk 0:01:31.1]} 13. f4 {[%clk 0:02:28]} 13... Bxb3 {[%clk 0:01:08.2]} 14.
axb3 {[%clk 0:02:26.1]} 14... b4 {[%clk 0:01:04.2]} 15. Na4 {[%clk 0:02:22.4]}
15... a5 {[%clk 0:00:56.7]} 16. fxe5 {[%clk 0:02:12.9]} 16... dxe5 {[%clk
0:00:52.8]} 17. Bxf6 {[%clk 0:02:09.7]} 17... Nxf6 {[%clk 0:00:39.5]} 18. Bb5+
{[%clk 0:02:08.6]} 18... Kf8 {[%clk 0:00:39.8]} 19. Qe2 {[%clk 0:01:57.8]} 19...
Qc7 {[%clk 0:00:38.9]} 20. h3 {[%clk 0:01:51.7]} 20... Rh6 {[%clk 0:00:38.2]}
21. g4 {[%clk 0:01:50.7]} 21... hxg4 {[%clk 0:00:30.2]} 22. hxg4 {[%clk
0:01:51.6]} 22... Nh7 {[%clk 0:00:17.1]} 23. Rh1 {[%clk 0:01:44.4]} 23... Bg5
{[%clk 0:00:06]} 24. Bc4 {[%clk 0:01:43]} 24... Kg8 {[%clk 0:00:05.8]} 25. Qf3
{[%clk 0:01:41]} 25... Rf6 {[%clk 0:00:05.5]} 26. Qh3 {[%clk 0:01:39.9]} 26...
Bh6 {[%clk 0:00:04.9]} 27. Rdf1 {[%clk 0:01:32.7]} 27... Ng5 {[%clk 0:00:04.5]}
28. Qg2 {[%clk 0:01:31.3]} 28... Rxf1+ {[%clk 0:00:03.3]} 29. Rxf1 {[%clk
0:01:31.7]} 29... Rd8 {[%clk 0:00:03.6]} 30. Bd3 {[%clk 0:01:25.3]} 30... Rd6
{[%clk 0:00:03.5]} 31. Qg1 {[%clk 0:01:22.9]} 31... Qd8 {[%clk 0:00:02.8]} 32.
Qc5 {[%clk 0:01:20.8]} 32... Rxd3 {[%clk 0:00:02.5]} 33. Ka2 {[%clk 0:01:12.1]}
33... Rd1 {[%clk 0:00:02.5]} 34. Rf5 {[%clk 0:01:11.3]} 34... f6 {[%clk
0:00:02]} 35. Nb6 {[%clk 0:01:08.2]} 35... Ne6 {[%clk 0:00:01.5]} 36. Qc4 {[%clk
0:01:07.3]} 36... Qxb6 {[%clk 0:00:02]} 37. g5 {[%clk 0:01:03.4]} 37... Bxg5
{[%clk 0:00:02]} 38. Rf3 {[%clk 0:01:02.3]} 38... Kh7 {[%clk 0:00:01.6]} 39.
Rh3+ {[%clk 0:01:02]} 39... Kg6 {[%clk 0:00:01.7]} 40. Qe2 {[%clk 0:01:01.4]}
40... Qg1 {[%clk 0:00:01.4]} 41. Qh5# {[%clk 0:01:01.5]} 1-0

[Event "Late-Titled-Tuesday-Blitz-April-16-2024"]
[Site "Chess.com"]
[Date "2024.04.16"]
[Round "8"]
[White "N_I_Chess"]
[Black "martinmena"]
[Result "1-0"]
[WhiteElo "2383"]
[BlackElo "2182"]
[TimeControl "180+1"]
[EndTime "15:24:12 PDT"]
[Termination "N_I_Chess won on time"]

1. d4 {[%clk 0:03:00.9]} 1... d5 {[%clk 0:03:00]} 2. c4 {[%clk 0:02:57.6]} 2...
e6 {[%clk 0:03:00.2]} 3. Nc3 {[%clk 0:02:50.5]} 3... Nf6 {[%clk 0:02:59.2]} 4.
cxd5 {[%clk 0:02:50.1]} 4... exd5 {[%clk 0:02:58.6]} 5. Bg5 {[%clk 0:02:49.6]}
5... Be7 {[%clk 0:02:55.2]} 6. Qc2 {[%clk 0:02:49.8]} 6... g6 {[%clk 0:02:47.1]}
7. e3 {[%clk 0:02:40.8]} 7... Bf5 {[%clk 0:02:47.2]} 8. Qb3 {[%clk 0:02:40.1]}
8... Nbd7 {[%clk 0:01:49.4]} 9. Bh6 {[%clk 0:01:40.5]} 9... c6 {[%clk
0:00:47.5]} 10. h3 {[%clk 0:01:36.8]} 10... Qb6 {[%clk 0:00:44.7]} 11. Qxb6
{[%clk 0:01:20.9]} 11... axb6 {[%clk 0:00:41.5]} 12. g4 {[%clk 0:01:20.3]} 12...
Be6 {[%clk 0:00:34.2]} 13. Bd3 {[%clk 0:01:16.3]} 13... Rg8 {[%clk 0:00:19.4]}
14. Bf4 {[%clk 0:01:16]} 14... c5 {[%clk 0:00:10.2]} 15. Nf3 {[%clk 0:00:53.3]}
15... c4 {[%clk 0:00:09.4]} 16. Bc2 {[%clk 0:00:52.9]} 16... Bb4 {[%clk
0:00:08.7]} 17. O-O {[%clk 0:00:50.8]} 17... Bxc3 {[%clk 0:00:08.7]} 18. bxc3
{[%clk 0:00:51.7]} 18... Ra3 {[%clk 0:00:08.8]} 19. Rfb1 {[%clk 0:00:43.5]}
19... Rxc3 {[%clk 0:00:08.4]} 20. Ba4 {[%clk 0:00:44.1]} 20... Ke7 {[%clk
0:00:07.9]} 21. Bg5 {[%clk 0:00:42.8]} 21... Kd6 {[%clk 0:00:04.1]} 22. Bxf6
{[%clk 0:00:42.2]} 22... Nxf6 {[%clk 0:00:05]} 23. Rxb6+ {[%clk 0:00:42.6]}
23... Kc7 {[%clk 0:00:05.6]} 24. Rab1 {[%clk 0:00:43]} 24... Rb8 {[%clk
0:00:05.6]} 25. Ne5 {[%clk 0:00:42.9]} 25... Ra3 {[%clk 0:00:03.7]} 26. Bd1
{[%clk 0:00:40.7]} 26... Ne4 {[%clk 0:00:01.3]} 27. f3 {[%clk 0:00:38.9]} 1-0

[Event "Late-Titled-Tuesday-Blitz-April-16-2024"]
[Site "Chess.com"]
[Date "2024.04.16"]
[Round "8"]
[White "prochn"]
[Black "Alexei_Gubajdullin"]
[Result "0-1"]
[WhiteElo "2447"]
[BlackElo "2621"]
[TimeControl "180+1"]
[EndTime "15:24:13 PDT"]
[Termination "Alexei_Gubajdullin won by resignation"]

1. d4 {[%clk 0:03:00.9]} 1... Nf6 {[%clk 0:02:44.7]} 2. c4 {[%clk 0:03:00.7]}
2... g6 {[%clk 0:02:44.1]} 3. g3 {[%clk 0:03:01]} 3... Bg7 {[%clk 0:02:44.7]} 4.
Bg2 {[%clk 0:03:01.3]} 4... O-O {[%clk 0:02:45.4]} 5. Nc3 {[%clk 0:03:01.7]}
5... d6 {[%clk 0:02:46.1]} 6. Nf3 {[%clk 0:03:02.1]} 6... Nbd7 {[%clk
0:02:46.7]} 7. O-O {[%clk 0:03:01]} 7... e5 {[%clk 0:02:47.2]} 8. e4 {[%clk
0:03:01.3]} 8... c6 {[%clk 0:02:47.6]} 9. h3 {[%clk 0:02:56.7]} 9... a5 {[%clk
0:02:48.1]} 10. Re1 {[%clk 0:02:56]} 10... Re8 {[%clk 0:02:46.5]} 11. Be3 {[%clk
0:02:51.1]} 11... a4 {[%clk 0:02:46.3]} 12. Rb1 {[%clk 0:02:50.1]} 12... Qa5
{[%clk 0:02:45.9]} 13. d5 {[%clk 0:02:38.1]} 13... cxd5 {[%clk 0:02:42]} 14.
cxd5 {[%clk 0:02:37.9]} 14... b5 {[%clk 0:02:40.6]} 15. a3 {[%clk 0:02:11.5]}
15... Nb6 {[%clk 0:02:39.7]} 16. Nd2 {[%clk 0:02:10.3]} 16... Nfd7 {[%clk
0:02:38.2]} 17. Bf1 {[%clk 0:02:08.3]} 17... Ba6 {[%clk 0:02:37.3]} 18. Na2
{[%clk 0:02:05.3]} 18... Nc4 {[%clk 0:02:33]} 19. Nxc4 {[%clk 0:02:01.2]} 19...
bxc4 {[%clk 0:02:33.1]} 20. Nb4 {[%clk 0:02:01.2]} 20... Bb5 {[%clk 0:02:26.5]}
21. Rc1 {[%clk 0:02:00.2]} 21... Rac8 {[%clk 0:02:23.4]} 22. Rc2 {[%clk
0:01:54.5]} 22... Nc5 {[%clk 0:02:22.7]} 23. Bxc5 {[%clk 0:01:32.7]} 23... Rxc5
{[%clk 0:02:21.8]} 24. Qc1 {[%clk 0:01:29.8]} 24... Rec8 {[%clk 0:02:20.5]} 25.
Rc3 {[%clk 0:01:27.7]} 25... h5 {[%clk 0:02:19.1]} 26. Qc2 {[%clk 0:01:24.9]}
26... h4 {[%clk 0:02:18.6]} 27. gxh4 {[%clk 0:01:21.6]} 27... Bh6 {[%clk
0:02:18.5]} 28. Kh1 {[%clk 0:01:15]} 28... Qd8 {[%clk 0:02:16.1]} 29. h5 {[%clk
0:01:08.9]} 29... gxh5 {[%clk 0:02:07]} 30. Qe2 {[%clk 0:01:04.4]} 30... Qh4
{[%clk 0:02:02.3]} 31. Rd1 {[%clk 0:00:54.1]} 31... Bf4 {[%clk 0:02:00.7]} 32.
Qf3 {[%clk 0:00:46]} 32... Kh7 {[%clk 0:01:57]} 33. Be2 {[%clk 0:00:46.3]} 33...
Kh6 {[%clk 0:01:57.3]} 34. Rg1 {[%clk 0:00:45.2]} 34... Bd7 {[%clk 0:01:56.6]}
35. Qg2 {[%clk 0:00:23.7]} 35... Qf6 {[%clk 0:01:50.7]} 36. Rf3 {[%clk 0:00:20]}
36... c3 {[%clk 0:01:47.9]} 37. bxc3 {[%clk 0:00:19.1]} 37... Rxc3 {[%clk
0:01:48.1]} 38. Rxf4 {[%clk 0:00:18.7]} 38... exf4 {[%clk 0:01:46.7]} 39. Bf3
{[%clk 0:00:15.9]} 39... Qg6 {[%clk 0:01:29.8]} 40. Qf1 {[%clk 0:00:15.3]} 40...
Rxf3 {[%clk 0:01:24.8]} 41. Rxg6+ {[%clk 0:00:14.5]} 41... fxg6 {[%clk
0:01:25.5]} 42. Nd3 {[%clk 0:00:12.7]} 42... Bxh3 {[%clk 0:01:18.6]} 43. Qd1
{[%clk 0:00:11.8]} 43... Bg4 {[%clk 0:01:18.1]} 44. Kg1 {[%clk 0:00:11.1]} 44...
Rh3 {[%clk 0:01:17.2]} 45. Qd2 {[%clk 0:00:09.8]} 45... Bf3 {[%clk 0:01:15.8]}
0-1